[Event "Titled Tuesday Blitz March 29 Early 2022"]
[White "Mikhalsky, Vladimir"]
[Black "Steinberg, Nitzan"]
[WhiteFideId "14144352"]
[BlackFideId "2801795"]
[WhiteElo "2301"]
[BlackElo "2440"]
[Result "0-1"]
[Round "01"]
[TimeControl "180+1"]
[Date "2022.03.29"]
[WhiteClock "0:00:27"]
[BlackClock "0:01:05"]

1. c4 {[%clk 0:02:55]}  e6 {[%clk 0:02:57]} 2. g3 {[%clk 0:02:55]}  d5 {[%clk 0:02:57]} 3. Bg2 {[%clk 0:02:55]}  Nf6 {[%clk 0:02:58]} 4. Nf3 {[%clk 0:02:55]}  Be7 {[%clk 0:02:54]} 5. O-O {[%clk 0:02:54]}  O-O {[%clk 0:02:53]} 6. b3 {[%clk 0:02:54]}  b6 {[%clk 0:02:49]} 7. Bb2 {[%clk 0:02:54]}  Bb7 {[%clk 0:02:50]} 8. d4 {[%clk 0:02:48]}  Nbd7 {[%clk 0:02:50]} 9. Nc3 {[%clk 0:02:47]}  c5 {[%clk 0:02:48]} 10. cxd5 {[%clk 0:02:47]}  Nxd5 {[%clk 0:02:46]} 11. Rc1 {[%clk 0:02:36]}  Rc8 {[%clk 0:02:43]} 12. Re1 {[%clk 0:02:35]}  Nxc3 {[%clk 0:02:36]} 13. Bxc3 {[%clk 0:02:34]}  Bf6 {[%clk 0:02:36]} 14. dxc5 {[%clk 0:02:16]}  Bxc3 {[%clk 0:02:33]} 15. Rxc3 {[%clk 0:02:16]}  Nxc5 {[%clk 0:02:26]} 16. Qc1 {[%clk 0:02:05]}  Qf6 {[%clk 0:02:21]} 17. Rc4 {[%clk 0:01:56]}  Bd5 {[%clk 0:02:08]} 18. Rf4 {[%clk 0:01:55]}  Qe7 {[%clk 0:02:07]} 19. Qb2 {[%clk 0:01:54]}  Rfd8 {[%clk 0:02:03]} 20. Rg4 {[%clk 0:01:50]}  f6 {[%clk 0:02:01]} 21. Nd4 {[%clk 0:01:44]}  Bxg2 {[%clk 0:01:53]} 22. Kxg2 {[%clk 0:01:44]}  f5 {[%clk 0:01:51]} 23. Rh4 {[%clk 0:01:43]}  Qf6 {[%clk 0:01:48]} 24. Qa1 {[%clk 0:01:30]}  g5 {[%clk 0:01:44]} 25. Nxe6 {[%clk 0:01:13]}  Qxa1 {[%clk 0:01:33]} 26. Rxa1 {[%clk 0:01:13]}  Nxe6 {[%clk 0:01:33]} 27. Ra4 {[%clk 0:01:07]}  Rd7 {[%clk 0:01:32]} 28. e4 {[%clk 0:01:07]}  f4 {[%clk 0:01:28]} 29. Kf3 {[%clk 0:01:00]}  h5 {[%clk 0:01:28]} 30. gxf4 {[%clk 0:00:59]}  Nxf4 {[%clk 0:01:28]} 31. e5 {[%clk 0:00:53]}  Kf7 {[%clk 0:01:27]} 32. Rg1 {[%clk 0:00:52]}  Nh3 {[%clk 0:01:14]} 33. Rg3 {[%clk 0:00:49]}  Ke6 {[%clk 0:01:09]} 34. Rxh3 {[%clk 0:00:35]}  g4+ {[%clk 0:01:09]} 35. Rxg4 {[%clk 0:00:35]}  hxg4+ {[%clk 0:01:09]} 36. Kxg4 {[%clk 0:00:35]}  Rg8+ {[%clk 0:01:07]} 37. Kf4 {[%clk 0:00:33]}  Rf7+ {[%clk 0:01:06]} 38. Ke3 {[%clk 0:00:29]}  Kxe5 {[%clk 0:01:07]} 39. Rh5+ {[%clk 0:00:28]}  Kd6 {[%clk 0:01:07]} 40. Rh6+ {[%clk 0:00:28]}  Kd7 {[%clk 0:01:07]} 41. f4 {[%clk 0:00:28]}  Rg2 {[%clk 0:01:06]} 42. Ke4 {[%clk 0:00:27]}  Rxa2 {[%clk 0:01:06]} 43. f5 {[%clk 0:00:28]}  Re2+ {[%clk 0:01:05]} 44. Kd3 {[%clk 0:00:28]}  Rf2 {[%clk 0:01:05]} 45. f6 {[%clk 0:00:27]}  R2xf6 {[%clk 0:01:05]} 0-1


[Site "https://www.chess.com"]

[Event "Titled Tuesday Blitz March 29 Early 2022"]
[White "Muradov, Soltan"]
[Black "Kozak, Antoni"]
[WhiteFideId "14002108"]
[BlackFideId "21832030"]
[WhiteElo "1854"]
[BlackElo "2236"]
[Result "0-1"]
[Round "01"]
[TimeControl "180+1"]
[Date "2022.03.30"]
[WhiteClock "0:00:07"]
[BlackClock "0:00:15"]

1. d4 {[%clk 0:03:00]}  Nf6 {[%clk 0:02:50]} 2. Nf3 {[%clk 0:03:01]}  e6 {[%clk 0:02:49]} 3. Bf4 {[%clk 0:02:59]}  b6 {[%clk 0:02:39]} 4. e3 {[%clk 0:02:57]}  Bb7 {[%clk 0:02:38]} 5. Be2 {[%clk 0:02:57]}  d6 {[%clk 0:02:33]} 6. h3 {[%clk 0:02:57]}  Nbd7 {[%clk 0:02:32]} 7. c4 {[%clk 0:02:49]}  g6 {[%clk 0:02:21]} 8. Nc3 {[%clk 0:02:46]}  Bg7 {[%clk 0:02:21]} 9. Qc2 {[%clk 0:02:42]}  O-O {[%clk 0:02:15]} 10. O-O-O {[%clk 0:02:30]}  Qe7 {[%clk 0:02:07]} 11. Bg5 {[%clk 0:02:07]}  h6 {[%clk 0:01:50]} 12. Bh4 {[%clk 0:02:06]}  a6 {[%clk 0:01:40]} 13. g4 {[%clk 0:01:23]}  c5 {[%clk 0:01:34]} 14. Rhg1 {[%clk 0:01:21]}  g5 {[%clk 0:01:24]} 15. Bg3 {[%clk 0:01:03]}  cxd4 {[%clk 0:01:21]} 16. Nxd4 {[%clk 0:01:00]}  Nc5 {[%clk 0:01:09]} 17. Bf3 {[%clk 0:00:57]}  Rfd8 {[%clk 0:01:01]} 18. Nc6 {[%clk 0:00:55]}  Bxc6 {[%clk 0:00:58]} 19. Bxc6 {[%clk 0:00:56]}  Rac8 {[%clk 0:00:59]} 20. Bf3 {[%clk 0:00:57]}  b5 {[%clk 0:00:53]} 21. cxb5 {[%clk 0:00:29]}  axb5 {[%clk 0:00:49]} 22. Kb1 {[%clk 0:00:30]}  b4 {[%clk 0:00:46]} 23. Nb5 {[%clk 0:00:23]}  d5 {[%clk 0:00:37]} 24. Rc1 {[%clk 0:00:14]}  Nfe4 {[%clk 0:00:36]} 25. Bxe4 {[%clk 0:00:12]}  dxe4 {[%clk 0:00:33]} 26. Rgd1 {[%clk 0:00:10]}  Nd3 {[%clk 0:00:17]} 27. Qxc8 {[%clk 0:00:10]}  Rxc8 {[%clk 0:00:18]} 28. Rxc8+ {[%clk 0:00:10]}  Kh7 {[%clk 0:00:18]} 29. Nd6 {[%clk 0:00:09]}  Nxb2 {[%clk 0:00:16]} 30. Nxe4 {[%clk 0:00:07]}  Nxd1 {[%clk 0:00:15]} 0-1


[Site "https://www.chess.com"]

[Event "Titled Tuesday Blitz March 29 Early 2022"]
[White "Osmonbekov, Talaibek"]
[Black "Grebeniuk, Semen"]
[WhiteFideId "2017253"]
[BlackFideId "14117509"]
[WhiteElo "2135"]
[BlackElo "2234"]
[Result "0-1"]
[Round "01"]
[TimeControl "180+1"]
[Date "2022.03.30"]
[WhiteClock "0:00:01"]
[BlackClock "0:00:13"]

1. d4 {[%clk 0:03:00]}  f5 {[%clk 0:02:59]} 2. Nc3 {[%clk 0:03:01]}  Nf6 {[%clk 0:02:58]} 3. Bg5 {[%clk 0:03:00]}  d5 {[%clk 0:02:59]} 4. e3 {[%clk 0:02:59]}  e6 {[%clk 0:02:57]} 5. Nf3 {[%clk 0:02:59]}  Be7 {[%clk 0:02:55]} 6. Be2 {[%clk 0:02:56]}  O-O {[%clk 0:02:55]} 7. O-O {[%clk 0:02:55]}  Nbd7 {[%clk 0:02:54]} 8. Bd3 {[%clk 0:02:37]}  c5 {[%clk 0:02:54]} 9. b3 {[%clk 0:02:29]}  Ne4 {[%clk 0:02:49]} 10. Bxe7 {[%clk 0:02:24]}  Qxe7 {[%clk 0:02:50]} 11. Ne2 {[%clk 0:02:19]}  b6 {[%clk 0:02:45]} 12. c4 {[%clk 0:02:18]}  Bb7 {[%clk 0:02:44]} 13. Rc1 {[%clk 0:02:18]}  Rad8 {[%clk 0:02:39]} 14. Qc2 {[%clk 0:02:05]}  Qf6 {[%clk 0:02:14]} 15. Rfd1 {[%clk 0:02:03]}  g5 {[%clk 0:02:10]} 16. a3 {[%clk 0:01:30]}  Rc8 {[%clk 0:02:04]} 17. Qa2 {[%clk 0:01:21]}  Kh8 {[%clk 0:01:56]} 18. b4 {[%clk 0:01:17]}  g4 {[%clk 0:01:51]} 19. Ne1 {[%clk 0:01:11]}  Qh6 {[%clk 0:01:24]} 20. Bxe4 {[%clk 0:01:08]}  fxe4 {[%clk 0:01:21]} 21. Ng3 {[%clk 0:00:53]}  cxd4 {[%clk 0:01:05]} 22. Rxd4 {[%clk 0:00:40]}  Ne5 {[%clk 0:01:03]} 23. Rcd1 {[%clk 0:00:35]}  Nxc4 {[%clk 0:00:53]} 24. Qe2 {[%clk 0:00:19]}  Qg7 {[%clk 0:00:51]} 25. Nxe4 {[%clk 0:00:17]}  dxe4 {[%clk 0:00:41]} 26. Rxc4 {[%clk 0:00:16]}  Ba6 {[%clk 0:00:40]} 27. b5 {[%clk 0:00:15]}  Bxb5 {[%clk 0:00:40]} 28. Rdc1 {[%clk 0:00:14]}  Bxc4 {[%clk 0:00:37]} 29. Rxc4 {[%clk 0:00:14]}  Rxc4 {[%clk 0:00:37]} 30. Qxc4 {[%clk 0:00:15]}  Qf6 {[%clk 0:00:33]} 31. Qc2 {[%clk 0:00:14]}  Qf5 {[%clk 0:00:33]} 32. g3 {[%clk 0:00:13]}  Kg8 {[%clk 0:00:32]} 33. Ng2 {[%clk 0:00:12]}  e5 {[%clk 0:00:32]} 34. Qb3+ {[%clk 0:00:11]}  Qf7 {[%clk 0:00:32]} 35. Qb2 {[%clk 0:00:11]}  Qd5 {[%clk 0:00:31]} 36. Nh4 {[%clk 0:00:11]}  Kg7 {[%clk 0:00:23]} 37. Kg2 {[%clk 0:00:11]}  h5 {[%clk 0:00:20]} 38. h3 {[%clk 0:00:10]}  gxh3+ {[%clk 0:00:20]} 39. Kxh3 {[%clk 0:00:10]}  Rc8 {[%clk 0:00:19]} 40. Qe2 {[%clk 0:00:09]}  Qf7 {[%clk 0:00:18]} 41. Qb5 {[%clk 0:00:06]}  Qe6+ {[%clk 0:00:17]} 42. Kg2 {[%clk 0:00:05]}  Rc2 {[%clk 0:00:15]} 43. Qa4 {[%clk 0:00:04]}  Rc7 {[%clk 0:00:11]} 44. Qxe4 {[%clk 0:00:04]}  Qc6 {[%clk 0:00:11]} 45. Nf5+ {[%clk 0:00:03]}  Kf6 {[%clk 0:00:11]} 46. Qxc6+ {[%clk 0:00:02]}  Rxc6 {[%clk 0:00:12]} 47. e4 {[%clk 0:00:03]}  Rc3 {[%clk 0:00:12]} 48. a4 {[%clk 0:00:02]}  Ra3 {[%clk 0:00:13]} 49. f4 {[%clk 0:00:01]}  Rxa4 {[%clk 0:00:13]} 0-1


[Site "https://www.chess.com"]

[Event "Titled Tuesday Blitz March 29 Early 2022"]
[White "Ovezdurdyyeva, Jemal"]
[Black "Kozlov, Gennady"]
[WhiteFideId "14001888"]
[BlackFideId "4191668"]
[WhiteElo "1946"]
[BlackElo "2392"]
[Result "0-1"]
[Round "01"]
[TimeControl "180+1"]
[Date "2022.03.30"]
[WhiteClock "0:00:09"]
[BlackClock "0:01:15"]

1. e4 {[%clk 0:02:58]}  e6 {[%clk 0:02:59]} 2. d4 {[%clk 0:02:57]}  d5 {[%clk 0:02:59]} 3. Nc3 {[%clk 0:02:56]}  dxe4 {[%clk 0:02:58]} 4. Nxe4 {[%clk 0:02:56]}  Bd7 {[%clk 0:02:59]} 5. Nf3 {[%clk 0:02:55]}  Bc6 {[%clk 0:02:59]} 6. Bd3 {[%clk 0:02:54]}  Nd7 {[%clk 0:03:00]} 7. O-O {[%clk 0:02:53]}  Ngf6 {[%clk 0:02:59]} 8. Ng3 {[%clk 0:02:50]}  Bd6 {[%clk 0:02:58]} 9. c4 {[%clk 0:02:49]}  b6 {[%clk 0:02:58]} 10. a3 {[%clk 0:02:46]}  Bb7 {[%clk 0:02:57]} 11. b4 {[%clk 0:02:44]}  c5 {[%clk 0:02:57]} 12. dxc5 {[%clk 0:02:23]}  bxc5 {[%clk 0:02:58]} 13. Qb3 {[%clk 0:02:17]}  Bxf3 {[%clk 0:02:55]} 14. gxf3 {[%clk 0:02:16]}  Rb8 {[%clk 0:02:55]} 15. b5 {[%clk 0:02:15]}  h5 {[%clk 0:02:43]} 16. Rd1 {[%clk 0:02:11]}  Qc7 {[%clk 0:02:39]} 17. Bc2 {[%clk 0:01:44]}  Ne5 {[%clk 0:02:34]} 18. Bg5 {[%clk 0:01:25]}  h4 {[%clk 0:02:20]} 19. Nf1 {[%clk 0:01:04]}  Rh5 {[%clk 0:02:16]} 20. Bc1 {[%clk 0:00:51]}  Kf8 {[%clk 0:02:06]} 21. Kh1 {[%clk 0:00:48]}  Nc6 {[%clk 0:02:05]} 22. Bb2 {[%clk 0:00:43]}  Nd4 {[%clk 0:02:04]} 23. Bxd4 {[%clk 0:00:40]}  cxd4 {[%clk 0:02:05]} 24. Rxd4 {[%clk 0:00:41]}  Be5 {[%clk 0:02:05]} 25. Rad1 {[%clk 0:00:34]}  Bxd4 {[%clk 0:02:04]} 26. Rxd4 {[%clk 0:00:35]}  Kg8 {[%clk 0:02:03]} 27. Qd3 {[%clk 0:00:34]}  Qc5 {[%clk 0:01:55]} 28. Ne3 {[%clk 0:00:33]}  Rg5 {[%clk 0:01:45]} 29. Ng4 {[%clk 0:00:32]}  Nxg4 {[%clk 0:01:41]} 30. fxg4 {[%clk 0:00:27]}  g6 {[%clk 0:01:40]} 31. h3 {[%clk 0:00:25]}  Re5 {[%clk 0:01:39]} 32. Kg2 {[%clk 0:00:18]}  Rc8 {[%clk 0:01:30]} 33. a4 {[%clk 0:00:16]}  Qb4 {[%clk 0:01:28]} 34. Bb3 {[%clk 0:00:11]}  Re1 {[%clk 0:01:26]} 35. Bc2 {[%clk 0:00:11]}  Qc5 {[%clk 0:01:22]} 36. Rd8+ {[%clk 0:00:11]}  Rxd8 {[%clk 0:01:20]} 37. Qxd8+ {[%clk 0:00:12]}  Kg7 {[%clk 0:01:20]} 38. Bd3 {[%clk 0:00:12]}  Rd1 {[%clk 0:01:16]} 39. Bf1 {[%clk 0:00:09]}  Rxd8 {[%clk 0:01:15]} 0-1


[Site "https://www.chess.com"]

[Event "Titled Tuesday Blitz March 29 Early 2022"]
[White "Pajeken, Jakob Leon"]
[Black "Sahil, Tickoo"]
[WhiteFideId "12942839"]
[BlackFideId "5019710"]
[WhiteElo "2351"]
[BlackElo "2099"]
[Result "1-0"]
[Round "01"]
[TimeControl "180+1"]
[Date "2022.03.30"]
[WhiteClock "0:00:15"]
[BlackClock "0:00:04"]

1. e4 {[%clk 0:02:59]}  c5 {[%clk 0:02:58]} 2. Nf3 {[%clk 0:02:59]}  d6 {[%clk 0:02:58]} 3. d4 {[%clk 0:02:58]}  cxd4 {[%clk 0:02:56]} 4. Nxd4 {[%clk 0:02:59]}  Nf6 {[%clk 0:02:56]} 5. Nc3 {[%clk 0:03:00]}  a6 {[%clk 0:02:56]} 6. Be3 {[%clk 0:02:59]}  e5 {[%clk 0:02:56]} 7. Nf3 {[%clk 0:02:59]}  Qc7 {[%clk 0:02:56]} 8. a4 {[%clk 0:02:57]}  Nbd7 {[%clk 0:02:54]} 9. Nd2 {[%clk 0:02:51]}  Nc5 {[%clk 0:02:45]} 10. Bg5 {[%clk 0:02:46]}  Be7 {[%clk 0:02:35]} 11. Bxf6 {[%clk 0:02:45]}  Bxf6 {[%clk 0:02:34]} 12. Nd5 {[%clk 0:02:45]}  Qd8 {[%clk 0:02:33]} 13. b4 {[%clk 0:02:41]}  Ne6 {[%clk 0:02:32]} 14. Bc4 {[%clk 0:02:26]}  O-O {[%clk 0:02:31]} 15. O-O {[%clk 0:02:23]}  Bd7 {[%clk 0:02:24]} 16. a5 {[%clk 0:02:23]}  Rc8 {[%clk 0:02:20]} 17. Nb6 {[%clk 0:02:22]}  Rc7 {[%clk 0:02:15]} 18. c3 {[%clk 0:02:18]}  Bc6 {[%clk 0:02:13]} 19. Bd5 {[%clk 0:02:13]}  Nf4 {[%clk 0:02:10]} 20. Bxc6 {[%clk 0:02:00]}  Rxc6 {[%clk 0:01:52]} 21. g3 {[%clk 0:01:59]}  Ne6 {[%clk 0:01:46]} 22. Ndc4 {[%clk 0:01:50]}  Be7 {[%clk 0:01:44]} 23. Qd3 {[%clk 0:01:44]}  Nc7 {[%clk 0:01:18]} 24. Na3 {[%clk 0:01:27]}  h5 {[%clk 0:01:03]} 25. Rad1 {[%clk 0:01:17]}  h4 {[%clk 0:00:57]} 26. f4 {[%clk 0:01:17]}  hxg3 {[%clk 0:00:56]} 27. hxg3 {[%clk 0:01:18]}  exf4 {[%clk 0:00:42]} 28. gxf4 {[%clk 0:01:19]}  Bf6 {[%clk 0:00:40]} 29. c4 {[%clk 0:01:14]}  Rxb6 {[%clk 0:00:22]} 30. axb6 {[%clk 0:01:15]}  Ne6 {[%clk 0:00:22]} 31. Qe3 {[%clk 0:01:13]}  Qe8 {[%clk 0:00:15]} 32. Rxd6 {[%clk 0:01:09]}  Qa4 {[%clk 0:00:14]} 33. f5 {[%clk 0:00:59]}  Ng5 {[%clk 0:00:13]} 34. b5 {[%clk 0:00:33]}  a5 {[%clk 0:00:10]} 35. Rf2 {[%clk 0:00:20]}  Be5 {[%clk 0:00:08]} 36. Rd5 {[%clk 0:00:19]}  f6 {[%clk 0:00:07]} 37. Rxe5 {[%clk 0:00:19]}  fxe5 {[%clk 0:00:06]} 38. Qxg5 {[%clk 0:00:18]}  Qxa3 {[%clk 0:00:06]} 39. Rg2 {[%clk 0:00:17]}  Qa1+ {[%clk 0:00:06]} 40. Kh2 {[%clk 0:00:17]}  Rf7 {[%clk 0:00:06]} 41. Qd8+ {[%clk 0:00:17]}  Rf8 {[%clk 0:00:06]} 42. Qd5+ {[%clk 0:00:17]}  Rf7 {[%clk 0:00:06]} 43. f6 {[%clk 0:00:16]}  g6 {[%clk 0:00:04]} 44. Rxg6+ {[%clk 0:00:15]}  Kf8 {[%clk 0:00:04]} 45. Qd8# {[%clk 0:00:15]} 1-0


[Site "https://www.chess.com"]

[Event "Titled Tuesday Blitz March 29 Early 2022"]
[White "Papp, Petra"]
[Black "Manolache, Marius"]
[WhiteFideId "739049"]
[BlackFideId "1201530"]
[WhiteElo "2259"]
[BlackElo "2389"]
[Result "0-1"]
[Round "01"]
[TimeControl "180+1"]
[Date "2022.03.30"]
[WhiteClock "0:00:02"]
[BlackClock "0:00:02"]

1. d4 {[%clk 0:03:00]}  Nf6 {[%clk 0:02:57]} 2. c4 {[%clk 0:02:59]}  c5 {[%clk 0:02:56]} 3. d5 {[%clk 0:02:56]}  e6 {[%clk 0:02:56]} 4. Nc3 {[%clk 0:02:55]}  d6 {[%clk 0:02:56]} 5. Nf3 {[%clk 0:02:53]}  Be7 {[%clk 0:02:56]} 6. e4 {[%clk 0:02:49]}  O-O {[%clk 0:02:55]} 7. Bd3 {[%clk 0:02:48]}  Re8 {[%clk 0:02:52]} 8. O-O {[%clk 0:02:45]}  a6 {[%clk 0:02:48]} 9. a4 {[%clk 0:02:42]}  Nbd7 {[%clk 0:02:47]} 10. h3 {[%clk 0:02:37]}  Nf8 {[%clk 0:02:47]} 11. dxe6 {[%clk 0:02:32]}  Nxe6 {[%clk 0:02:43]} 12. Re1 {[%clk 0:02:23]}  b6 {[%clk 0:02:41]} 13. Qc2 {[%clk 0:02:23]}  Bb7 {[%clk 0:02:40]} 14. b3 {[%clk 0:02:21]}  Rc8 {[%clk 0:02:39]} 15. Bb2 {[%clk 0:02:21]}  h6 {[%clk 0:02:37]} 16. Rad1 {[%clk 0:02:20]}  Qc7 {[%clk 0:02:37]} 17. Nd5 {[%clk 0:02:17]}  Bxd5 {[%clk 0:02:34]} 18. exd5 {[%clk 0:02:15]}  Nf8 {[%clk 0:02:31]} 19. Nd2 {[%clk 0:01:53]}  N6d7 {[%clk 0:02:21]} 20. Bf5 {[%clk 0:01:26]}  Rcd8 {[%clk 0:02:16]} 21. Re2 {[%clk 0:01:01]}  Bf6 {[%clk 0:02:14]} 22. Rde1 {[%clk 0:01:01]}  Qb8 {[%clk 0:02:02]} 23. Bxf6 {[%clk 0:00:55]}  Nxf6 {[%clk 0:02:02]} 24. Ne4 {[%clk 0:00:55]}  Nxe4 {[%clk 0:01:55]} 25. Bxe4 {[%clk 0:00:46]}  Nd7 {[%clk 0:01:48]} 26. f4 {[%clk 0:00:42]}  Nf6 {[%clk 0:01:46]} 27. Bf3 {[%clk 0:00:35]}  b5 {[%clk 0:01:46]} 28. cxb5 {[%clk 0:00:33]}  axb5 {[%clk 0:01:46]} 29. a5 {[%clk 0:00:34]}  Qa7 {[%clk 0:01:38]} 30. Rxe8+ {[%clk 0:00:30]}  Nxe8 {[%clk 0:01:35]} 31. Qa2 {[%clk 0:00:24]}  Nc7 {[%clk 0:01:32]} 32. Kh2 {[%clk 0:00:23]}  Re8 {[%clk 0:01:27]} 33. Rxe8+ {[%clk 0:00:15]}  Nxe8 {[%clk 0:01:26]} 34. a6 {[%clk 0:00:12]}  Nc7 {[%clk 0:01:26]} 35. Qa5 {[%clk 0:00:13]}  Kf8 {[%clk 0:01:10]} 36. Be2 {[%clk 0:00:13]}  Ke7 {[%clk 0:01:10]} 37. Bxb5 {[%clk 0:00:11]}  Nxd5 {[%clk 0:01:10]} 38. f5 {[%clk 0:00:05]}  Nb4 {[%clk 0:00:57]} 39. Bc4 {[%clk 0:00:04]}  d5 {[%clk 0:00:56]} 40. Be2 {[%clk 0:00:02]}  d4 {[%clk 0:00:55]} 41. Qb5 {[%clk 0:00:02]}  Kd6 {[%clk 0:00:51]} 42. Bc4 {[%clk 0:00:02]}  Qc7 {[%clk 0:00:44]} 43. Qe8 {[%clk 0:00:03]}  d3 {[%clk 0:00:41]} 44. Qf8+ {[%clk 0:00:02]}  Kc6+ {[%clk 0:00:41]} 45. Kg1 {[%clk 0:00:03]}  d2 {[%clk 0:00:37]} 46. Qe8+ {[%clk 0:00:03]}  Kb6 {[%clk 0:00:36]} 47. Qb5+ {[%clk 0:00:04]}  Ka7 {[%clk 0:00:36]} 48. Be2 {[%clk 0:00:04]}  Qe7 {[%clk 0:00:23]} 49. Qc4 {[%clk 0:00:05]}  Kb6 {[%clk 0:00:20]} 50. Kh1 {[%clk 0:00:05]}  Qd7 {[%clk 0:00:16]} 51. Qg4 {[%clk 0:00:04]}  f6 {[%clk 0:00:13]} 52. Qf3 {[%clk 0:00:04]}  Nxa6 {[%clk 0:00:10]} 53. Kh2 {[%clk 0:00:03]}  Nb4 {[%clk 0:00:10]} 54. Qg4 {[%clk 0:00:03]}  Qd6+ {[%clk 0:00:11]} 55. Kh1 {[%clk 0:00:02]}  Qe5 {[%clk 0:00:11]} 56. Qf3 {[%clk 0:00:02]}  Qd4 {[%clk 0:00:11]} 57. Qh5 {[%clk 0:00:02]}  Nc6 {[%clk 0:00:10]} 58. Kh2 {[%clk 0:00:03]}  Qe5+ {[%clk 0:00:10]} 59. Kh1 {[%clk 0:00:03]}  Qe3 {[%clk 0:00:11]} 60. Bf3 {[%clk 0:00:03]}  Ne5 {[%clk 0:00:09]} 61. Bd1 {[%clk 0:00:02]}  Qe1+ {[%clk 0:00:08]} 62. Kh2 {[%clk 0:00:02]}  Nc6 {[%clk 0:00:08]} 63. Qf3 {[%clk 0:00:02]}  Qe5+ {[%clk 0:00:07]} 64. Kh1 {[%clk 0:00:02]}  Qe1+ {[%clk 0:00:07]} 65. Kh2 {[%clk 0:00:03]}  Nd4 {[%clk 0:00:07]} 66. Qg4 {[%clk 0:00:03]}  Qe5+ {[%clk 0:00:06]} 67. Kh1 {[%clk 0:00:03]}  h5 {[%clk 0:00:05]} 68. Qxh5 {[%clk 0:00:03]}  Qxf5 {[%clk 0:00:05]} 69. Qe8 {[%clk 0:00:02]}  Qe5 {[%clk 0:00:05]} 70. Qd8+ {[%clk 0:00:02]}  Kb5 {[%clk 0:00:05]} 71. Qb8+ {[%clk 0:00:02]}  Qxb8 {[%clk 0:00:02]} 0-1


[Site "https://www.chess.com"]

[Event "Titled Tuesday Blitz March 29 Early 2022"]
[White "Paravyan, David"]
[Black "Kozin, Yuri"]
[WhiteFideId "4194985"]
[BlackFideId "4129920"]
[WhiteElo "2569"]
[BlackElo "2503"]
[Result "1-0"]
[Round "01"]
[TimeControl "180+1"]
[Date "2022.03.29"]
[WhiteClock "0:00:12"]
[BlackClock "0:00:13"]

1. e4 {[%clk 0:03:00]}  c5 {[%clk 0:02:58]} 2. Nf3 {[%clk 0:02:59]}  e6 {[%clk 0:02:58]} 3. d4 {[%clk 0:02:59]}  cxd4 {[%clk 0:02:59]} 4. Nxd4 {[%clk 0:03:00]}  a6 {[%clk 0:03:00]} 5. Nc3 {[%clk 0:02:59]}  Qc7 {[%clk 0:03:00]} 6. Bd3 {[%clk 0:02:59]}  Nc6 {[%clk 0:03:01]} 7. Nxc6 {[%clk 0:02:54]}  dxc6 {[%clk 0:03:02]} 8. O-O {[%clk 0:02:53]}  e5 {[%clk 0:03:01]} 9. f4 {[%clk 0:02:50]}  Nf6 {[%clk 0:02:58]} 10. Kh1 {[%clk 0:02:46]}  Bd6 {[%clk 0:02:46]} 11. f5 {[%clk 0:02:45]}  b5 {[%clk 0:02:38]} 12. a4 {[%clk 0:02:41]}  Rb8 {[%clk 0:02:32]} 13. axb5 {[%clk 0:02:36]}  axb5 {[%clk 0:02:26]} 14. Bg5 {[%clk 0:02:26]}  Be7 {[%clk 0:02:21]} 15. Qf3 {[%clk 0:01:59]}  h6 {[%clk 0:02:20]} 16. Be3 {[%clk 0:01:58]}  Bb7 {[%clk 0:02:12]} 17. Qg3 {[%clk 0:01:33]}  Kf8 {[%clk 0:01:51]} 18. b3 {[%clk 0:01:16]}  b4 {[%clk 0:01:47]} 19. Nb1 {[%clk 0:01:15]}  c5 {[%clk 0:01:47]} 20. Nd2 {[%clk 0:01:15]}  h5 {[%clk 0:01:42]} 21. Bg5 {[%clk 0:01:06]}  Nh7 {[%clk 0:01:38]} 22. Bxe7+ {[%clk 0:01:01]}  Qxe7 {[%clk 0:01:39]} 23. Nc4 {[%clk 0:01:00]}  Nf6 {[%clk 0:01:24]} 24. Ra7 {[%clk 0:00:52]}  Nd7 {[%clk 0:01:08]} 25. h3 {[%clk 0:00:43]}  h4 {[%clk 0:01:08]} 26. Qe3 {[%clk 0:00:41]}  Rh6 {[%clk 0:01:05]} 27. Rfa1 {[%clk 0:00:38]}  Rc6 {[%clk 0:00:53]} 28. Na5 {[%clk 0:00:37]}  Rc7 {[%clk 0:00:52]} 29. Bc4 {[%clk 0:00:30]}  Kg8 {[%clk 0:00:51]} 30. Bd5 {[%clk 0:00:25]}  Nf6 {[%clk 0:00:21]} 31. Rxb7 {[%clk 0:00:21]}  Rcxb7 {[%clk 0:00:20]} 32. Bxb7 {[%clk 0:00:21]}  Rxb7 {[%clk 0:00:20]} 33. Nxb7 {[%clk 0:00:19]}  Qxb7 {[%clk 0:00:21]} 34. Re1 {[%clk 0:00:16]}  Qc6 {[%clk 0:00:21]} 35. Kh2 {[%clk 0:00:17]}  c4 {[%clk 0:00:20]} 36. bxc4 {[%clk 0:00:11]}  Qxc4 {[%clk 0:00:21]} 37. Qd3 {[%clk 0:00:11]}  Qc6 {[%clk 0:00:20]} 38. Re2 {[%clk 0:00:11]}  Kh7 {[%clk 0:00:20]} 39. Qf3 {[%clk 0:00:11]}  Kg8 {[%clk 0:00:18]} 40. Qf2 {[%clk 0:00:11]}  Nh5 {[%clk 0:00:17]} 41. Qxh4 {[%clk 0:00:10]}  Nf4 {[%clk 0:00:17]} 42. Rd2 {[%clk 0:00:10]}  f6 {[%clk 0:00:17]} 43. Rd8+ {[%clk 0:00:10]}  Kf7 {[%clk 0:00:17]} 44. Qh8 {[%clk 0:00:11]}  Qc5 {[%clk 0:00:12]} 45. Qg8+ {[%clk 0:00:11]}  Ke7 {[%clk 0:00:13]} 46. Qe8# {[%clk 0:00:12]} 1-0


[Site "https://www.chess.com"]

[Event "Titled Tuesday Blitz March 29 Early 2022"]
[White "Peatman, Carter"]
[Black "Gareyev, Timur"]
[WhiteFideId "2096480"]
[BlackFideId "14200937"]
[WhiteElo "2477"]
[BlackElo "2582"]
[Result "0-1"]
[Round "01"]
[TimeControl "180+1"]
[Date "2022.03.29"]
[WhiteClock "0:01:24"]
[BlackClock "0:01:21"]

1. d4 {[%clk 0:02:59]}  Nf6 {[%clk 0:02:56]} 2. Nf3 {[%clk 0:02:56]}  d6 {[%clk 0:02:55]} 3. Bf4 {[%clk 0:02:55]}  g6 {[%clk 0:02:53]} 4. e3 {[%clk 0:02:55]}  Bg7 {[%clk 0:02:53]} 5. h3 {[%clk 0:02:55]}  O-O {[%clk 0:02:51]} 6. c3 {[%clk 0:02:53]}  Nc6 {[%clk 0:02:48]} 7. Bh2 {[%clk 0:02:53]}  Bf5 {[%clk 0:02:47]} 8. Be2 {[%clk 0:02:50]}  Re8 {[%clk 0:02:41]} 9. O-O {[%clk 0:02:50]}  e5 {[%clk 0:02:41]} 10. a4 {[%clk 0:02:48]}  exd4 {[%clk 0:02:26]} 11. exd4 {[%clk 0:02:38]}  Ne4 {[%clk 0:02:23]} 12. Nbd2 {[%clk 0:02:37]}  Qf6 {[%clk 0:02:16]} 13. Nxe4 {[%clk 0:02:25]}  Bxe4 {[%clk 0:02:17]} 14. Nd2 {[%clk 0:02:25]}  Bd5 {[%clk 0:02:09]} 15. Bc4 {[%clk 0:02:23]}  Bxc4 {[%clk 0:02:04]} 16. Nxc4 {[%clk 0:02:24]}  Re4 {[%clk 0:01:55]} 17. Qd2 {[%clk 0:02:03]}  Rae8 {[%clk 0:01:51]} 18. Rae1 {[%clk 0:02:01]}  Qf5 {[%clk 0:01:28]} 19. Bf4 {[%clk 0:01:23]}  Rxe1 {[%clk 0:01:22]} 20. Rxe1 {[%clk 0:01:24]}  Rxe1+ {[%clk 0:01:21]} 21. Qxe1 {[%clk 0:01:24]}  Qxf4 {[%clk 0:01:21]} 0-1


[Site "https://www.chess.com"]